bitfinex/quotes_BTCUSD_20251226
["timestamp","ask_amount","ask_price","bid_price","bid_amount"]
[1766751604453,0.01128311,88628.0,88619.0,0.0003596]
[1766751604636,0.01128311,88628.0,88619.0,0.01164386]
[1766751604938,0.01128298,88629.0,88620.0,0.01128413]
[1766751605099,0.01128298,88629.0,88621.0,0.011284]
[1766751605305,0.01128298,88629.0,88620.0,0.01128413]
[1766751605638,0.01128311,88628.0,88620.0,0.01128413]
[1766751606833,0.01128298,88629.0,88620.0,0.01128413]
[1766751607601,0.01128298,88629.0,88619.0,0.01164386]
[1766751607805,0.01128324,88627.0,88619.0,0.0003596]
[1766751608004,0.01128324,88627.0,88619.0,0.01164386]
[1766751608203,0.01128311,88628.0,88620.0,0.01128413]
[1766751608939,0.01128311,88628.0,88619.0,0.01164386]
[1766751609145,0.01128298,88629.0,88620.0,0.01128413]
[1766751609509,0.01128298,88629.0,88621.0,0.011284]
[1766751609708,0.01128298,88629.0,88620.0,0.01128413]
[1766751609709,0.01128,88631.0,88625.0,0.01128349]
[1766751609909,0.01128,88631.0,88629.0,0.05641437]
[1766751610109,0.01128,88631.0,88622.0,0.01128387]
[1766751610110,0.01128095,88645.0,88635.0,0.01128222]
[1766751610311,0.02256082,88646.0,88636.0,0.01128209]
[1766751610497,0.02256082,88646.0,88637.0,0.01128197]
[1766751610700,0.01128,88646.0,88640.0,0.01128158]
[1766751612954,0.01128,88645.0,88640.0,0.01128158]
[1766751613747,0.01128,88645.0,88641.0,0.01128146]
[1766751614288,0.01128,88645.0,88642.0,0.01128133]
[1766751614626,0.01128,88645.0,88642.0,0.0676875]
[1766751615325,0.01128,88645.0,88642.0,0.01128133]
[1766751615673,0.01128,88645.0,88641.0,0.06768854]
[1766751615850,0.01128,88645.0,88641.0,0.01128146]
[1766751616527,0.01128,88645.0,88642.0,0.01128133]
[1766751617775,0.01128,88645.0,88641.0,0.01128146]
[1766751618362,0.01128,88645.0,88640.0,0.01128158]
[1766751619246,0.01128,88645.0,88641.0,0.01128146]
[1766751619447,0.01128,88645.0,88640.0,0.01128158]
[1766751620756,0.01128,88645.0,88641.0,0.01128146]
[1766751622313,0.01128,88645.0,88640.0,0.01128158]
[1766751622510,0.01128,88645.0,88641.0,0.01128146]
[1766751623103,0.01128,88645.0,88640.0,0.01128158]
[1766751623500,0.01128,88645.0,88641.0,0.01128146]
[1766751624301,0.01128,88645.0,88639.0,0.01128171]
[1766751624486,0.01128,88645.0,88640.0,0.01128158]
[1766751624691,0.01128,88645.0,88641.0,0.01128146]
[1766751625511,0.01128,88645.0,88640.0,0.01128158]
[1766751627434,0.01128,88645.0,88641.0,0.01128146]
[1766751628621,0.01128,88645.0,88640.0,0.01128158]
[1766751629037,0.01128,88645.0,88642.0,0.01128133]
[1766751630771,0.01128,88645.0,88642.0,0.06768773]
[1766751631305,0.04970067,88662.0,88613.0,0.09482067]
[1766751631434,0.01127904,88660.0,88650.0,0.40365602]
[1766751631630,0.01127942,88657.0,88650.0,0.40310702]
[1766751631884,0.01127942,88657.0,88648.0,0.01128057]
[1766751632183,0.01127942,88657.0,88649.0,0.01128044]
[1766751632388,0.00055,88649.0,88646.0,0.06768434]
[1766751632587,0.01128082,88646.0,88630.0,0.40365602]
[1766751632790,0.01128082,88646.0,88635.0,0.01128222]
[1766751632791,0.01128095,88645.0,88635.0,0.01128222]
[1766751633008,0.01128158,88640.0,88631.0,0.01128]
[1766751633149,0.01128158,88640.0,88631.0,0.0003596]
[1766751633150,0.01128171,88639.0,88631.0,0.0003596]
[1766751633352,0.01128171,88639.0,88631.0,0.01164233]
[1766751633558,0.01128158,88640.0,88631.0,0.01164233]
[1766751633754,0.01128158,88640.0,88632.0,0.0112826]
[1766751634058,0.01128158,88640.0,88631.0,0.01164233]
[1766751634712,0.01128171,88639.0,88631.0,0.0003596]
[1766751634937,0.01128184,88638.0,88631.0,0.0003596]
[1766751635286,0.01128197,88637.0,88631.0,0.0003596]
[1766751635460,0.01128171,88639.0,88631.0,0.0003596]
[1766751636365,0.01128171,88639.0,88631.0,0.01164233]
[1766751636931,0.01128146,88641.0,88633.0,0.01128247]
[1766751638123,0.01128107,88644.0,88635.0,0.01128222]
[1766751638386,0.0112812,88643.0,88634.0,0.01128235]
[1766751638619,0.01128133,88642.0,88634.0,0.01128235]
[1766751640421,0.0112812,88643.0,88635.0,0.01128222]
[1766751640600,0.0112812,88643.0,88634.0,0.01128235]
[1766751641001,0.01128107,88644.0,88635.0,0.01128222]
[1766751641505,0.06768752,88643.0,88633.0,0.01128247]
[1766751642224,0.01128146,88641.0,88632.0,0.0112826]
[1766751642426,0.01128158,88640.0,88631.0,0.06805559]
[1766751642651,0.01128158,88640.0,88632.0,0.0112826]
[1766751643474,0.01128146,88641.0,88632.0,0.0112826]
[1766751643749,0.01128171,88639.0,88631.0,0.06805559]
[1766751643964,0.01128171,88639.0,88631.0,0.0003596]
[1766751645568,0.01128158,88640.0,88632.0,0.0112826]
[1766751645750,0.01128146,88641.0,88632.0,0.0112826]
[1766751646779,0.01128146,88641.0,88633.0,0.01128247]
[1766751647590,0.01128133,88642.0,88633.0,0.01128247]
[1766751647793,0.01128146,88641.0,88633.0,0.01128247]
[1766751648470,0.01128133,88642.0,88634.0,0.01128235]
[1766751649988,0.01128044,88649.0,88642.0,0.000549]
[1766751650188,0.01128082,88646.0,88642.0,0.000549]
[1766751650489,0.02256095,88645.0,88637.0,0.01128197]
[1766751650696,0.02256095,88645.0,88636.0,0.01128209]
[1766751650909,0.01128133,88642.0,88632.0,0.0112826]
[1766751651408,0.01128146,88641.0,88633.0,0.01128247]
[1766751651706,0.01128146,88641.0,88630.0,0.40365602]
[1766751651886,0.00055,88633.0,88626.0,0.01128337]
[1766751652073,0.01128209,88636.0,88628.0,0.01128311]
[1766751652259,0.01128209,88636.0,88627.0,0.02256324]
[1766751652706,0.01128235,88634.0,88622.0,0.01128387]
[1766751652880,0.05641299,88633.0,88631.0,6e-07]
[1766751654203,0.01128,88634.0,88633.0,0.000908]
[1766751654384,0.01128,88634.0,88631.0,6e-07]
[1766751654385,8.86e-06,88634.0,88632.0,0.0112826]
[1766751654591,0.000191,88632.0,88631.0,6e-07]
[1766751655121,0.05641276,88633.0,88631.0,6e-07]
[1766751658304,0.01129121,88634.0,88631.0,6e-07]
[1766751659418,0.06770332,88634.0,88631.0,6e-07]
[1766751660634,0.0564129,88633.0,88631.0,6e-07]
[1766751663349,0.06770332,88634.0,88631.0,6e-07]
[1766751663752,0.01128095,88645.0,88634.0,0.00034914]
[1766751664051,0.05640582,88644.0,88634.0,0.00034914]
[1766751664212,0.01128,88643.0,88636.0,0.01128209]
[1766751664409,0.01128,88643.0,88637.0,0.01128197]
[1766751664606,0.01128095,88645.0,88637.0,0.01128197]
[1766751664843,0.02256107,88644.0,88636.0,0.01128209]
[1766751665203,0.0112812,88643.0,88635.0,0.01128222]
[1766751665734,0.01128133,88642.0,88633.0,0.01128247]
[1766751665931,0.01128133,88642.0,88634.0,0.01128235]
[1766751666131,0.0112812,88643.0,88635.0,0.01128222]
[1766751666358,0.0112812,88643.0,88634.0,0.01128235]
[1766751666557,0.02256107,88644.0,88635.0,0.01128222]
[1766751666755,0.01128,88644.0,88636.0,0.01128209]
[1766751667197,0.02256107,88644.0,88635.0,0.01128222]
[1766751667498,0.01128,88644.0,88635.0,0.01128222]
[1766751667811,0.02256107,88644.0,88635.0,0.01128222]
[1766751667975,0.01128,88644.0,88637.0,0.01128197]
[1766751668174,0.02256107,88644.0,88635.0,0.01128222]
[1766751668380,0.01128,88644.0,88636.0,0.01128209]
[1766751668558,0.01127942,88657.0,88644.0,0.000349]
[1766751668758,0.0112798,88654.0,88646.0,0.01128082]
[1766751668978,0.0002,88646.0,88641.0,0.01128146]
[1766751669179,0.01128,88645.0,88641.0,0.01128146]
[1766751669379,0.01128,88645.0,88639.0,0.01128171]
[1766751669563,0.01128,88645.0,88640.0,0.01128158]
[1766751669935,0.01128,88645.0,88639.0,0.01128171]
[1766751670081,0.01127967,88655.0,88646.0,0.01128082]
[1766751670259,0.0225598,88654.0,88646.0,0.01128082]
[1766751670684,0.0225598,88654.0,88645.0,0.01217995]
[1766751670685,0.0225598,88654.0,88645.0,0.01128095]
[1766751670887,0.01127993,88653.0,88644.0,0.01128107]
[1766751671061,0.01128006,88652.0,88643.0,0.06768723]
[1766751671268,0.01128018,88651.0,88643.0,0.0112812]
[1766751671462,0.01128006,88652.0,88644.0,0.01128107]
[1766751671699,0.01127993,88653.0,88645.0,0.01128095]
[1766751673763,0.01127993,88653.0,88644.0,0.01128107]
[1766751674189,0.01127993,88653.0,88645.0,0.01128095]
[1766751675369,0.0225598,88654.0,88645.0,0.01128095]
[1766751675890,0.0225598,88654.0,88646.0,0.01128082]
[1766751676188,0.0225598,88654.0,88645.0,0.01128095]
[1766751676648,0.01128,88654.0,88647.0,0.01128069]
[1766751676846,0.0222108,88654.0,88646.0,0.01128082]
[1766751678683,0.010931,88654.0,88646.0,0.01128082]
[1766751680217,0.05639489,88661.0,88650.0,0.01128031]
[1766751680402,0.04970067,88662.0,88651.0,0.01128018]
[1766751680403,0.02255904,88660.0,88651.0,0.01128018]
[1766751681406,0.02255904,88660.0,88652.0,0.01128006]
[1766751681601,0.01128,88660.0,88652.0,0.01128006]
[1766751681979,0.02255904,88660.0,88651.0,0.01128018]
[1766751682338,0.01128,88660.0,88653.0,0.01127993]
[1766751685133,0.02255904,88660.0,88651.0,0.01128018]
[1766751685445,0.01127917,88659.0,88650.0,0.01128031]
[1766751685598,0.01128,88660.0,88651.0,0.01128018]
[1766751685947,0.01128,88660.0,88652.0,0.01128006]
[1766751686145,0.01128,88660.0,88653.0,0.01127993]
[1766751687289,0.02255904,88660.0,88652.0,0.01128006]
[1766751687495,0.02255904,88660.0,88650.0,0.06768142]
[1766751687695,0.01128,88660.0,88653.0,0.01127993]
[1766751688441,0.02255904,88660.0,88652.0,0.01128006]
[1766751689139,0.01128,88660.0,88652.0,0.01128006]
[1766751690825,0.01127917,88659.0,88651.0,0.01128018]
[1766751690997,0.01127917,88659.0,88649.0,0.01128044]
[1766751691151,0.01127917,88659.0,88649.0,0.06768239]
[1766751691363,0.01127917,88659.0,88650.0,0.01128031]
[1766751691580,0.01127942,88657.0,88647.0,0.05640288]
[1766751691780,0.01128031,88650.0,88641.0,0.02256146]
[1766751691943,0.01128107,88644.0,88641.0,0.01128]
[1766751692145,0.01128082,88646.0,88641.0,0.01128]
[1766751693002,0.01128069,88647.0,88641.0,0.01128]
[1766751694468,0.01128082,88646.0,88641.0,0.01128]
[1766751694669,0.01128069,88647.0,88641.0,0.01128]
[1766751695607,0.01127955,88656.0,88647.0,0.00055]
[1766751695833,0.05639871,88655.0,88644.0,0.01128107]
[1766751696017,0.01128069,88647.0,88641.0,0.01128]
[1766751696220,0.01128057,88648.0,88641.0,0.01128]
[1766751696386,0.01128082,88646.0,88641.0,0.01128]
[1766751696587,0.01128069,88647.0,88641.0,0.01128]
[1766751697719,0.01128057,88648.0,88641.0,0.01128]
[1766751699754,0.01128044,88649.0,88641.0,0.01128]
[1766751701636,0.01128069,88647.0,88641.0,0.01128]
[1766751701961,0.01128044,88649.0,88641.0,0.01128]
[1766751702158,0.01128057,88648.0,88641.0,0.01128]
[1766751702392,0.01128069,88647.0,88641.0,0.01128]
[1766751702772,0.01128057,88648.0,88641.0,0.01128]
[1766751705546,0.01128082,88646.0,88641.0,0.01128]
[1766751706037,0.01128069,88647.0,88641.0,0.01128]
[1766751706242,0.01128057,88648.0,88641.0,0.01128]
[1766751706451,0.05640084,88652.0,88641.0,0.01128]
[1766751706452,0.01128018,88651.0,88642.0,0.01128133]
[1766751706684,0.01128018,88651.0,88648.0,0.00055]
[1766751707174,0.01128031,88650.0,88642.0,0.01128133]
[1766751709433,0.02255993,88653.0,88643.0,0.0112812]
[1766751709740,0.02255993,88653.0,88645.0,0.01128095]
[1766751710354,0.01128006,88652.0,88644.0,0.01128107]
[1766751710752,0.01128018,88651.0,88642.0,0.01128133]
[1766751710953,0.01128018,88651.0,88643.0,0.0112812]
[1766751711206,0.01128006,88652.0,88643.0,0.0112812]
[1766751711744,0.01128006,88652.0,88644.0,0.01128107]
[1766751711946,0.02255993,88653.0,88644.0,0.01128107]
[1766751712391,0.01127993,88653.0,88644.0,0.01128107]
[1766751712553,0.02255993,88653.0,88645.0,0.01128095]
[1766751712978,0.01128,88653.0,88645.0,0.01128095]
[1766751713692,0.02255993,88653.0,88645.0,0.01128095]
[1766751715293,0.01128,88653.0,88645.0,0.01128095]
[1766751716099,0.01128,88653.0,88646.0,0.01128082]
[1766751716457,0.01128,88653.0,88645.0,0.01128095]
[1766751716659,0.01128,88653.0,88646.0,0.06768494]
[1766751716897,0.01128,88653.0,88649.0,0.01128044]
[1766751717303,0.01128,88653.0,88650.0,0.01128031]
[1766751717504,0.01128,88653.0,88648.0,0.01128057]
[1766751717905,0.01128,88653.0,88646.0,0.01128082]
[1766751718110,0.02255993,88653.0,88645.0,0.01128095]
[1766751718334,0.02255993,88653.0,88644.0,0.01128107]
[1766751718527,0.02255993,88653.0,88645.0,0.01128095]
[1766751719193,0.01128,88653.0,88646.0,0.01128082]
[1766751721193,0.01128,88653.0,88645.0,0.01128095]
[1766751721431,0.01128,88653.0,88644.0,0.01128107]
[1766751721661,0.01128006,88652.0,88643.0,0.0676867]
[1766751721931,0.01128,88653.0,88645.0,0.01128095]
[1766751722129,0.01128006,88652.0,88643.0,0.0112812]
[1766751722368,0.01128018,88651.0,88643.0,0.0112812]
[1766751722572,0.01128018,88651.0,88640.0,0.06768946]
[1766751722573,0.000549,88643.0,88640.0,0.03385437]
[1766751722773,0.01128082,88646.0,88638.0,0.01128184]
[1766751723069,0.01128069,88647.0,88639.0,0.01128171]
[1766751723375,0.01128057,88648.0,88639.0,0.01128171]
[1766751723574,0.01128069,88647.0,88641.0,0.01128069]
[1766751723773,0.01128018,88651.0,88641.0,0.02256215]
[1766751724076,0.01128018,88651.0,88642.0,0.01128133]
[1766751724655,0.01128018,88651.0,88643.0,0.0112812]
[1766751725657,0.01128018,88651.0,88642.0,0.01128133]
[1766751726088,0.01128018,88651.0,88643.0,0.0112812]
[1766751726290,0.01128018,88651.0,88642.0,0.01128133]
[1766751727060,0.01128018,88651.0,88639.0,0.02256355]
[1766751727061,4.407e-05,88650.0,88639.0,0.02256355]
[1766751727305,4.407e-05,88650.0,88640.0,0.01128158]
[1766751727670,0.01128044,88649.0,88641.0,0.01128146]
[1766751727914,0.01128057,88648.0,88640.0,0.01128158]
[1766751728292,0.01132438,88650.0,88641.0,0.01128146]
[1766751728504,0.01128044,88649.0,88641.0,0.01128146]
[1766751729345,0.01128031,88650.0,88641.0,0.01128146]
[1766751729640,0.01128031,88650.0,88642.0,0.01128133]
[1766751730022,4.407e-05,88649.0,88642.0,0.01128133]
[1766751730994,4.407e-05,88649.0,88643.0,0.0112812]
[1766751731196,4.407e-05,88649.0,88642.0,0.01128133]
[1766751731394,4.407e-05,88649.0,88643.0,0.0112812]
[1766751732992,0.01132451,88649.0,88640.0,0.01128158]
[1766751733235,0.01132451,88649.0,88639.0,0.01128184]
[1766751733553,0.01128057,88648.0,88640.0,0.01128158]
[1766751735418,0.01128044,88649.0,88641.0,0.01128146]
[1766751735618,0.01128031,88650.0,88642.0,0.01128133]
[1766751735948,0.01128018,88651.0,88642.0,0.01128133]
[1766751736150,0.01128031,88650.0,88642.0,0.01128133]
[1766751736534,0.01132438,88650.0,88642.0,0.01128133]
[1766751736790,4.407e-05,88650.0,88643.0,0.0112812]
[1766751737077,4.407e-05,88650.0,88644.0,0.01128107]
[1766751737298,4.407e-05,88650.0,88643.0,0.0112812]
[1766751739387,0.01132438,88650.0,88641.0,0.01128146]
[1766751739925,0.01132438,88650.0,88642.0,0.01128133]
[1766751740273,0.01132438,88650.0,88641.0,0.01128146]
[1766751741313,0.01132438,88650.0,88642.0,0.01128133]
[1766751741607,0.01128044,88649.0,88641.0,0.01128146]
[1766751741786,0.01132438,88650.0,88641.0,0.01128146]
[1766751742105,0.01132438,88650.0,88642.0,0.01128133]
[1766751744420,0.01132438,88650.0,88641.0,0.01128146]
[1766751745323,0.01128044,88649.0,88641.0,0.01128146]
[1766751745680,0.01128057,88648.0,88639.0,0.01128171]
[1766751745887,0.01128044,88649.0,88640.0,0.01128158]
[1766751746085,0.01128044,88649.0,88641.0,0.01128146]
[1766751746283,0.01128057,88648.0,88638.0,0.01128184]
[1766751746504,0.01128069,88647.0,88639.0,0.01128171]
[1766751747472,0.000549,88639.0,88637.0,0.03385582]
[1766751747653,0.09930082,88646.0,88638.0,0.01128184]
[1766751747856,0.08802,88646.0,88638.0,0.01128184]
[1766751748362,0.06768112,88651.0,88639.0,0.12994857]
[1766751748516,0.06768112,88651.0,88636.0,0.06769207]
[1766751748517,4.407e-05,88638.0,88637.0,0.01128197]
[1766751748732,0.00957117,88647.0,88638.0,0.01128184]
[1766751748939,0.00957117,88647.0,88639.0,0.01128171]
[1766751749348,0.00957117,88647.0,88638.0,0.01128184]
[1766751749545,0.01128082,88646.0,88636.0,0.08482209]
[1766751749844,0.0112812,88643.0,88635.0,0.01128057]
[1766751750168,0.0112812,88643.0,88635.0,0.02256279]
[1766751750376,0.01128107,88644.0,88635.0,0.01128057]
[1766751750596,0.0112812,88643.0,88635.0,0.02256279]
[1766751750987,0.08802095,88645.0,88636.0,0.01128209]
[1766751751200,0.01128095,88645.0,88636.0,0.08482209]
[1766751751391,0.01128082,88646.0,88637.0,0.01128197]
[1766751751710,0.01128107,88644.0,88636.0,0.08482209]
[1766751752612,0.01128107,88644.0,88636.0,0.07354]
[1766751752821,0.01128107,88644.0,88636.0,0.08482209]
[1766751753024,0.01128107,88644.0,88635.0,0.02256279]
[1766751753025,0.01128107,88644.0,88635.0,0.01128222]
[1766751753385,0.01128107,88644.0,88636.0,0.01128209]
[1766751753584,0.06768616,88645.0,88637.0,0.01128197]
[1766751753585,0.01128095,88645.0,88637.0,0.01128197]
[1766751753987,0.01128095,88645.0,88636.0,0.01128209]
[1766751754192,0.01128222,88659.0,88650.0,0.01128031]
[1766751754406,0.01127878,88662.0,88652.0,0.06946006]
[1766751754784,0.01127878,88662.0,88653.0,0.01127993]
[1766751754967,0.01127866,88663.0,88654.0,0.0112798]
[1766751755169,0.01127866,88663.0,88655.0,0.01127967]
[1766751755421,0.02255853,88664.0,88655.0,0.01127967]
[1766751755623,0.01127866,88663.0,88654.0,0.06767862]
[1766751755822,0.01127866,88663.0,88654.0,0.0112798]
[1766751755976,0.01127878,88662.0,88653.0,0.01127993]
[1766751756378,0.01127866,88663.0,88654.0,0.0112798]
[1766751757630,0.01127866,88663.0,88655.0,0.01127967]
[1766751757830,0.01127866,88663.0,88654.0,0.0112798]
[1766751759115,0.01127866,88663.0,88655.0,0.01127967]
[1766751760206,0.02255853,88664.0,88655.0,0.01127967]
[1766751760407,0.07895172,88664.0,88653.0,0.01127993]
[1766751760610,0.07674,88661.0,88652.0,0.01128006]
[1766751760821,0.08801891,88661.0,88652.0,0.01128006]
[1766751761143,0.07674,88661.0,88653.0,0.01127993]
[1766751761443,0.07674,88661.0,88655.0,0.01127967]
[1766751761652,0.076235,88661.0,88656.0,0.01127955]
[1766751762173,0.076235,88661.0,88655.0,0.01127967]
[1766751762746,0.076235,88661.0,88656.0,0.01127955]
[1766751763317,0.076235,88661.0,88655.0,0.01127967]
[1766751763513,0.076235,88661.0,88656.0,0.01127955]
[1766751764679,0.076235,88661.0,88655.0,0.01127967]
[1766751764880,0.076235,88661.0,88656.0,0.01127955]
[1766751765082,0.076235,88661.0,88657.0,0.01127942]
[1766751765309,0.076235,88661.0,88656.0,0.01127955]
[1766751765491,0.076235,88661.0,88657.0,0.01127942]
[1766751765894,0.01128,88664.0,88657.0,0.01127942]
[1766751765895,0.01128,88664.0,88663.0,0.0563933]
[1766751766193,0.01128,88670.0,88665.0,0.0112784]
[1766751766591,0.01128,88670.0,88664.0,0.01127853]
[1766751766807,0.01128,88670.0,88662.0,0.01127878]
[1766751766968,0.01128,88670.0,88661.0,0.01127891]
[1766751767170,0.01163938,88670.0,88661.0,0.01127891]
[1766751767394,0.08228938,88670.0,88661.0,0.01127891]
[1766751767741,0.09356715,88670.0,88661.0,0.01127891]
[1766751768072,0.01127789,88669.0,88660.0,0.01127904]
[1766751768391,0.09356715,88670.0,88661.0,0.01127891]
[1766751769177,0.09356715,88670.0,88662.0,0.01127878]
[1766751769402,0.09356715,88670.0,88661.0,0.01127891]
[1766751770432,0.08228938,88670.0,88664.0,0.01127853]
[1766751770837,0.01163938,88670.0,88664.0,0.01127853]
[1766751773701,0.01163938,88670.0,88665.0,0.0112784]
[1766751774932,0.01163938,88670.0,88664.0,0.01127853]
[1766751775336,0.02291715,88670.0,88661.0,0.01127891]
[1766751775544,0.01127789,88669.0,88661.0,0.01127891]
[1766751775740,0.01163938,88670.0,88662.0,0.01127878]
[1766751776558,0.08228938,88670.0,88662.0,0.01127878]
[1766751777373,0.09356715,88670.0,88661.0,0.01127891]
[1766751777536,0.09356715,88670.0,88662.0,0.01127878]
[1766751777742,0.09356715,88670.0,88661.0,0.01127891]
[1766751778040,0.09356715,88670.0,88662.0,0.01127878]
[1766751778247,0.09356715,88670.0,88661.0,0.01127891]
[1766751778428,0.09356715,88670.0,88662.0,0.01127878]
[1766751779047,0.09356715,88670.0,88661.0,0.01127891]
[1766751779506,0.09356715,88670.0,88662.0,0.01127878]
[1766751780092,0.08228938,88670.0,88662.0,0.01127878]
[1766751780291,0.08228938,88670.0,88663.0,0.01127866]
[1766751780970,0.08228938,88670.0,88663.0,0.01240639]
[1766751781392,0.08228938,88670.0,88664.0,0.01127853]
[1766751782183,0.08228938,88670.0,88665.0,0.0112784]
[1766751782184,0.01163938,88670.0,88665.0,0.0112784]
[1766751782379,0.01163938,88670.0,88663.0,0.01240639]
[1766751782724,0.01163938,88670.0,88663.0,0.01127866]
[1766751783521,0.01163938,88670.0,88662.0,0.01127878]
[1766751784021,0.01163938,88670.0,88663.0,0.01127866]
[1766751784384,0.01163938,88670.0,88662.0,0.01127878]
[1766751785285,0.01163938,88670.0,88664.0,0.01127853]
[1766751785807,0.01163938,88670.0,88663.0,0.01127866]
[1766751786120,0.01163938,88670.0,88664.0,0.01127853]
[1766751786289,0.01163938,88670.0,88663.0,0.01127866]
[1766751786773,0.01163938,88670.0,88664.0,0.01127853]
[1766751787789,0.01163938,88670.0,88665.0,0.0112784]
[1766751787989,0.01163938,88670.0,88664.0,0.01127853]
[1766751788190,0.01163938,88670.0,88665.0,0.0112784]
[1766751788647,0.01163938,88670.0,88664.0,0.01127853]
[1766751788853,0.01163938,88670.0,88665.0,0.0112784]
[1766751790917,0.01163938,88670.0,88663.0,0.01127866]
[1766751791262,0.01163938,88670.0,88664.0,0.01127853]
[1766751791479,0.01163938,88670.0,88663.0,0.01127866]
[1766751791782,0.01163938,88670.0,88664.0,0.01127853]
[1766751792362,0.01163938,88670.0,88663.0,0.01127866]
[1766751793085,0.01163938,88670.0,88664.0,0.01127853]
[1766751794294,0.01163938,88670.0,88665.0,0.0112784]
[1766751794512,0.01163938,88670.0,88664.0,0.01127853]
[1766751795402,0.01163938,88670.0,88663.0,0.01127866]
[1766751797745,0.01163938,88670.0,88664.0,0.01127853]
[1766751797959,0.01163938,88670.0,88663.0,0.01127866]
[1766751801043,0.01163938,88670.0,88664.0,0.01127853]
[1766751802958,0.01163938,88670.0,88662.0,0.01127878]
[1766751803158,0.01163938,88670.0,88663.0,0.01127866]
[1766751806329,0.01163938,88670.0,88664.0,0.01127853]
[1766751806864,0.01163938,88670.0,88663.0,0.01127866]
[1766751807368,0.01163938,88670.0,88664.0,0.01127853]
[1766751807770,0.01163938,88670.0,88663.0,0.01127866]
[1766751808278,0.01163938,88670.0,88664.0,0.01127853]
[1766751808687,0.01163938,88670.0,88663.0,0.01127866]
[1766751808908,0.01163938,88670.0,88664.0,0.01127853]
[1766751809294,0.01163938,88670.0,88665.0,0.0112784]
[1766751809986,0.01163938,88670.0,88666.0,0.01127828]
[1766751811015,0.01108938,88670.0,88667.0,0.01127815]
[1766751811694,0.01108938,88670.0,88666.0,0.01127828]
[1766751812780,1e-08,88670.0,88669.0,0.05638949]
[1766751813119,0.33615034,88692.0,88677.0,0.01127688]
[1766751813120,0.01128,88683.0,88677.0,0.01127688]
[1766751813449,5.269e-05,88683.0,88681.0,0.01127637]
[1766751813597,5.269e-05,88683.0,88681.0,0.06765782]
[1766751813916,5.269e-05,88683.0,88681.0,0.01127637]
[1766751814121,0.000549,88681.0,88678.0,0.01127675]
[1766751814468,5.269e-05,88683.0,88679.0,0.01127662]
[1766751814692,5.269e-05,88683.0,88678.0,0.01127675]
[1766751814914,5.269e-05,88683.0,88679.0,0.01127662]
[1766751815116,5.269e-05,88683.0,88678.0,0.01127675]
[1766751816318,5.269e-05,88683.0,88679.0,0.01127662]
[1766751816472,5.269e-05,88683.0,88678.0,0.01127675]
[1766751817240,5.269e-05,88683.0,88679.0,0.01127662]
[1766751819030,5.269e-05,88683.0,88680.0,0.01127649]
[1766751819733,5.269e-05,88683.0,88679.0,0.01127662]
[1766751819929,5.269e-05,88683.0,88680.0,0.01127649]
[1766751823289,5.269e-05,88683.0,88681.0,0.05638148]
[1766751824661,5.269e-05,88683.0,88681.0,0.05583248]
[1766751826997,6.9e-07,88683.0,88681.0,0.05583248]
[1766751830393,6.9e-07,88683.0,88680.0,0.01127649]
[1766751830593,6.9e-07,88683.0,88680.0,0.01122449]
[1766751830869,6.9e-07,88683.0,88680.0,0.06760651]
[1766751831046,6.9e-07,88683.0,88681.0,0.05638142]
[1766751838190,6.9e-07,88683.0,88679.0,0.01127662]
[1766751838377,6.9e-07,88683.0,88678.0,0.06765996]
[1766751838378,0.00055,88681.0,88678.0,0.06765996]
[1766751838560,6.9e-07,88683.0,88679.0,0.01127662]
[1766751840363,0.00055,88679.0,88678.0,0.01127675]
[1766751840557,6.9e-07,88683.0,88679.0,0.01127662]
[1766751840788,6.9e-07,88683.0,88681.0,0.05638135]
[1766751841362,0.00055,88681.0,88677.0,0.06595165]
[1766751841560,0.00055,88681.0,88673.0,0.0676642]
[1766751841775,6.9e-07,88683.0,88674.0,0.02255548]
[1766751841976,0.0112768,88683.0,88674.0,0.01127548]
[1766751842204,0.0112768,88683.0,88674.0,0.01127726]
[1766751842404,6.9e-07,88683.0,88675.0,0.01127713]
[1766751842600,0.00055,88674.0,88666.0,0.01127828]
[1766751842919,0.01127662,88679.0,88669.0,0.01127789]
[1766751842920,0.01127675,88678.0,88669.0,0.01127789]
[1766751843417,0.01127662,88679.0,88670.0,0.01127777]
[1766751843795,0.41460152,88680.0,88671.0,0.01127764]
[1766751844121,0.41460152,88680.0,88672.0,0.01127751]
[1766751844782,0.40332503,88680.0,88672.0,0.01127751]
[1766751844984,0.40332503,88680.0,88673.0,0.01127738]
[1766751845903,0.40332503,88680.0,88674.0,0.01127726]
[1766751846085,0.01127624,88682.0,88674.0,0.01127726]
[1766751846280,0.00055,88674.0,88667.0,0.01127815]
[1766751846486,0.011277,88676.0,88666.0,0.01127828]
[1766751846818,0.01127713,88675.0,88666.0,0.01127828]
[1766751847030,0.01127726,88674.0,88666.0,0.01127828]
[1766751847411,0.011277,88676.0,88668.0,0.01127802]
[1766751847611,0.011277,88676.0,88667.0,0.01127815]
[1766751848040,0.01127713,88675.0,88667.0,0.01127815]
[1766751848599,0.01127713,88675.0,88666.0,0.01127828]
[1766751848917,0.01127713,88675.0,88667.0,0.01127815]
[1766751849941,0.08437726,88674.0,88666.0,0.01127828]
[1766751850237,0.0731,88674.0,88667.0,0.01127815]
[1766751850625,0.0731,88674.0,88668.0,0.01127802]
[1766751850796,0.0731,88674.0,88667.0,0.01127815]
[1766751850997,0.0731,88674.0,88668.0,0.01127802]
[1766751851231,0.0731,88674.0,88667.0,0.01127815]
[1766751851871,0.0731,88674.0,88668.0,0.01127802]
[1766751852346,0.0731,88674.0,88669.0,0.01127789]
[1766751852750,0.0731,88674.0,88668.0,0.01127802]
[1766751853157,0.0731,88674.0,88669.0,0.01127789]
[1766751854056,0.0731,88674.0,88668.0,0.01127802]
[1766751855179,0.0731,88674.0,88667.0,0.01127815]
[1766751855345,0.0731,88674.0,88668.0,0.01127802]
[1766751855730,0.0731,88674.0,88667.0,0.01127815]
[1766751856912,0.08437726,88674.0,88666.0,0.01127828]
[1766751857248,0.0731,88674.0,88666.0,0.01127828]
[1766751857882,0.0001749,88671.0,88666.0,0.01127828]
[1766751858812,0.0001749,88671.0,88666.0,0.06766918]
[1766751858969,0.0001749,88671.0,88668.0,0.01127802]
[1766751859176,0.0001749,88671.0,88667.0,0.01127815]
[1766751860307,9e-07,88671.0,88668.0,0.01127802]
[1766751863638,0.011277,88676.0,88668.0,0.01127802]
[1766751864671,0.011277,88676.0,88667.0,0.01127815]
[1766751865190,0.01127713,88675.0,88666.0,0.06766918]
[1766751865391,0.01127726,88674.0,88665.0,0.0112784]
[1766751865617,0.01127726,88674.0,88666.0,0.01127828]
[1766751866195,0.01127713,88675.0,88666.0,0.01127828]
[1766751866448,0.41463252,88676.0,88666.0,0.0676695]
[1766751867035,0.41463252,88676.0,88668.0,0.01127802]
[1766751867213,0.011277,88676.0,88668.0,0.01127802]
[1766751867804,0.02255688,88677.0,88668.0,0.01127802]
[1766751867805,0.02255688,88677.0,88669.0,0.01127789]
[1766751868204,0.02255688,88677.0,88668.0,0.01127802]
[1766751869424,0.011277,88676.0,88668.0,0.01127802]